[Event "USA Championship Women 2022"]
[Site "Saint Louis"]
[Date "2022.10.14"]
[Round "9.7"]
[White "Yan, Ruiyang"]
[Black "Abrahamyan, Tatev"]
[Result "1/2-1/2"]
[ECO "C16"]
[WhiteElo "2220"]
[BlackElo "2308"]
[Annotator "TA"]
[PlyCount "177"]
[EventDate "2022.09.05"]
[EventType "tourn"]
[EventCountry "USA"]
[SourceTitle "playchess.com"]
[Source "ChessBase"]
[SourceQuality "1"]
[TimeControl "40/5400+30:1800+30"]

{[%evp 14,177,54,57,72,68,73,56,63,65,65,33,65,15,32,0,42,42,42,42,42,0,0,-21,-14,-14,20,-20,-21,-41,-41,-41,-41,-41,-25,-49,-36,-78,-84,-73,-44,-50,-51,-37,-41,-45,0,-45,-49,-38,0,0,0,0,0,0,0,0,0,0,0,0,0,-51,0,0,796,343,322,0,341,-518,-539,-545,-548,-545,-517,-509,-459,-624,-616,-610,-605,-578,-580,-577,-481,-481,-370,-481,-481,-481,-481,-481,-481,-618,-481,-446,-229,-431,-253,-246,-246,-246,-246,-246,-246,-246,-246,-427,-375,-445,-434,-412,-415,-414,-179,-405,-375,-416,-415,-401,-371,-422,-417,-413,-404,-510,-535,-401,-272,-399,-392,-422,-422,-413,-370,-398,-389,-388,-362,-350,-272,-443,-256,-212,0,0,0,0,0,0,0,0,0,0,0,0,0,0,0,0,0,0,0,0]} 1. e4 {[%emt 0:00:03]} e6 {[%emt 0:00:06]} 2. d4 {[%emt 0:00:05]} d5 {[%emt 0:00:02]} 3. Nc3 {[%emt 0:00:07]} Bb4 {[%emt 0:00:06]} 4. e5 {[%emt 0:00:05]} Qd7 {[%emt 0:00:06]} 5. a3 {[%emt 0:01:02]} Bxc3+ {[%emt 0:00:07]} 6. bxc3 {[%emt 0:00:06]} b6 {[%emt 0:00:11]} 7. Qg4 {[%emt 0:07:35]} f5 {[%emt 0:00:39]} 8. Qg3 {[%emt 0:00:31]} Nc6 {[%emt 0:01:33][%cal Bb8c6,Bc6a5,Ba5c4][%mdl 32] C16: French: 3 Nc3 Bb4 4 e5: Lines without ...c5.} 9. h4 {[%emt 0:05:09]} Bb7 {[%emt 0:03:45]} 10. Nh3 {[%emt 0:03:56]} O-O-O {[%emt 0:01:51] White is slightly better.} 11. a4 {[%emt 0:07:30]} Na5 {[%emt 0:13:01] [#]} 12. Bd3 $146 {[%emt 0:02:32]} ({Predecessor:} 12. Nf4 Qf7 13. Be2 Ne7 14. Bh5 g6 15. Be2 Rdg8 16. Qg5 Kd7 17. Ba3 Nc4 18. Bxc4 dxc4 19. Bxe7 Qxe7 {0-1 (33) Jackson,J (2377)-Mirzoev,E (2511) Skopje 2019}) 12... Kb8 {[%emt 0:07:16]} 13. Nf4 {[%emt 0:09:57] White is more active.} ({White should try} 13. Ba3 $14) 13... Qf7 {[%emt 0:05:26]} 14. Nh3 {[%emt 0:10:17]} h6 {[%emt 0:04:31]} 15. Nf4 {[%emt 0:06:09]} Ne7 {[%emt 0:01:09][%cal Bg8e7,Be7c6,Bc6a7,Ba7b5][%mdl 32] Inhibits Qg6.} 16. h5 {[%emt 0:01:20]} Nc4 {[%emt 0:09:00]} 17. a5 {[%emt 0:14:46]} Nxa5 {[%emt 0:07:32]} 18. Ba3 {[%emt 0:01:39]} Rhe8 {[%emt 0:04:57]} 19. Bb5 {[%emt 0:01:47]} Nec6 {[%emt 0:05:21]} (19... Bc6 20. Bxe7 Bxb5 21. Bxd8 Rxd8 22. Qg6 Qxg6 23. Nxg6 $16 (23. hxg6 Re8 $14)) 20. O-O {[%emt 0:04:21][%mdl 1024] White has compensation.} a6 {[%emt 0:03:57]} 21. Bd3 {[%emt 0:01:03]} Nc4 {[%emt 0:06:18] Pair of Knights!} 22. Rfe1 {[%emt 0:00:59]} Na7 {[%emt 0:01:14]} 23. Reb1 {[%emt 0:04:22]} Nb5 {[%emt 0:01:33]} 24. Bxc4 {[%emt 0:03:52]} dxc4 {[%emt 0:02:05]} 25. Rb4 {[%emt 0:00:07]} Nxa3 {[%emt 0:04:10]} 26. Rxa3 {[%emt 0:00:05]} b5 {[%emt 0:01:15][%cal Oc7c5]} (26... a5 $5 {[%cal Ra5b4]} 27. Rb1 Qe7 $15) 27. Rb1 {[%emt 0:01:11]} Qd7 {[%emt 0:04:21]} 28. Qe3 {[%emt 0:01:50]} Rc8 {[%emt 0:01:50]} 29. Ra5 {[%emt 0:03:07]} c5 {[%emt 0:01:31]} 30. Rba1 {[%emt 0:00:49]} Qc6 {[%emt 0:01:14]} 31. f3 {[%emt 0:01:52] Prevents Qe4.} cxd4 {[%emt 0:03:27]} 32. cxd4 {[%emt 0:00:06]} Qb6 {[%emt 0:00:34]} 33. c3 {[%emt 0:01:57]} Rc6 {[%emt 0:01:50]} 34. Kh2 {[%emt 0:01:45]} Rec8 {[%emt 0:01:09]} 35. Qe1 {[%emt 0:01:05]} Qd8 {[%emt 0:02:16] Against d5} 36. Qf2 {[%emt 0:01:04]} Qg5 {[%emt 0:01:00]} 37. g3 {[%emt 0:00:22]} Qe7 {[%emt 0:00:46]} 38. d5 {[%emt 0:02:10]} (38. Rd1 $11) 38... exd5 {[%emt 0:01:04]} (38... Qc5 $15 39. Kg2 exd5) 39. Rxb5 $1 $11 {[%emt 0:00:08][%cal Of2d4]} Rc5 $2 {[%emt 0:01:12][%mdl 8192] [#]} (39... Qxe5 $11 40. Re1 (40. Nxd5 Rd8 $11) 40... Qf6) 40. Rxa6 $1 {[%emt 0:01:50]} Rxb5 $18 {[%emt 0:00:30]} 41. Qa7+ {[%emt 0:30:03]} Kc7 {[%emt 0:30:07][%cal Bb8c7,Bc7d7,Bd7e6][%mdl 32] [#]} 42. Ne6+ $4 {[%emt 0:00:03][%mdl 8192] Dancing on a razor blade.} (42. Rb6 $1 $18 {[%cal Rb6b5][%mdl 512] is the narrow road to win.} Kd8 43. Rxb5) 42... Kd7 $19 {[%emt 0:00:00]} 43. Rd6+ {[%emt 0:00:00] [#]} Qxd6 $1 {[%emt 0:00:00]} 44. exd6 {[%emt 0:00:00]} Kxe6 {[%emt 0:00:00]} 45. Qd4 {[%emt 0:00:00]} Rg8 {[%emt 0:00:00]} 46. f4 {[%emt 0:00:00] Threatening mate with Qe5+.} Rb2+ {[%emt 0:00:00]} 47. Kh3 {[%emt 0:00:00]} Kxd6 {[%emt 0:00:00]} 48. Qe5+ {[%emt 0:00:00]} Kd7 {[%emt 0:00:00]} 49. Qxf5+ {[%emt 0:00:00] [#]} Kd8 $1 {[%emt 0:00:00] ( -> ...Bc8)} 50. Qe5 {[%emt 0:00:00]} Rb6 {[%emt 0:00:00] Prevents Qd6+.} 51. Qd4 {[%emt 0:00:00]} Rf6 {[%emt 0:00:00]} 52. Qa7 {[%emt 0:00:00]} Kc8 {[%emt 0:00:07]} 53. Qc5+ {[%emt 0:00:00]} Kb8 {[%emt 0:00:23]} 54. Qe7 {[%emt 0:00:00]} Bc8+ {[%emt 0:01:20]} 55. g4 {[%emt 0:00:00]} Rgf8 {[%emt 0:02:25]} (55... Bb7 $142 56. f5 Kc8 57. Qc5+ Bc6) 56. f5 $2 {[%emt 0:00:00]} (56. Qe5+ Ka7 57. Qd4+ Ka6 58. Qxd5) 56... R8f7 {[%emt 0:01:40]} (56... Bb7 $142 57. Qxg7 d4) 57. Qe5+ {[%emt 0:00:00]} Rc7 {[%emt 0:00:41] White must now prevent ...Bb7.} 58. Qxd5 {[%emt 0:00:00]} Rb6 {[%emt 0:00:16]} 59. Qe5 {[%emt 0:00:00]} Bb7 {[%emt 0:00:25]} 60. Qe8+ {[%emt 0:00:00]} Ka7 {[%emt 0:00:10]} 61. Qe5 $2 {[%emt 0:00:00]} (61. Qd8 Rf7 62. Qd4) 61... Rd7 {[%emt 0:00:22]} 62. Qc5 {[%emt 0:00:00]} Bd5 {[%emt 0:00:30]} ({But not} 62... Rd3+ $2 63. Kh4 Rd7 64. Qxc4 $19) 63. Qc8 {[%emt 0:00:00]} Bc6 {[%emt 0:00:46][%cal Ob6b2] ...Rb2! is the strong threat.} 64. Kh4 {[%emt 0:00:00]} Re7 {[%emt 0:01:36]} (64... Bb5 $142 65. Qc5 Kb7) 65. Qd8 $2 {[%emt 0:00:00]} (65. Qf8 {was forced.} Rd7 66. f6 gxf6 67. Qxh6) 65... Reb7 {[%emt 0:00:22]} ({Wrong is} 65... Rd7 $2 66. Qc8 $19) 66. Qf8 {[%emt 0:00:00]} Bb5 {[%emt 0:00:06]} 67. Qa3+ {[%emt 0:00:00] [#]} Ba6 $1 {[%emt 0:00:04]} 68. Qc5 {[%emt 0:00:00]} Rd7 {[%emt 0:00:05]} 69. Qe3 {[%emt 0:00:00]} Bb5 {[%emt 0:00:54]} ({Stronger than} 69... Rd3 70. Qe7+ Kb8 71. Qxg7 $11) 70. Qe5 {[%emt 0:00:00]} Kb7 {[%emt 0:00:57]} 71. Qe4+ {[%emt 0:00:00]} Rc6 {[%emt 0:00:12]} 72. Qe8 {[%emt 0:00:00]} (72. Qe3 {might work better.}) 72... Rcd6 {[%emt 0:00:16]} 73. Qe4+ {[%emt 0:00:00]} Kb6 {[%emt 0:00:34]} 74. Qe3+ {[%emt 0:00:00]} Ka6 {[%emt 0:00:12]} 75. Qc5 {[%emt 0:00:51]} Rd1 {[%emt 0:01:45] Strongly threatening ...R7d3.} 76. Qc8+ {[%emt 0:00:29]} Kb6 {[%emt 0:00:57] Threatens to win with ...Rh1+.} 77. Qb8+ {[%emt 0:00:08]} Rb7 {[%emt 0:00:26]} 78. Qe5 $2 {[%emt 0:00:31]} (78. Qh2 {keeps fighting.}) 78... Rh1+ {[%emt 0:00:45]} (78... Bc6 $142 79. Qe3+ Kb5) 79. Kg3 {[%emt 0:00:04]} Rd7 $2 {[%emt 0:00:11] Against Qd4+} (79... Rc7 $19 {aiming for ...Bc6.} 80. Qd6+ Kb7) 80. Qb8+ $11 {[%emt 0:00:12] The position is equal.} Rb7 {[%emt 0:00:46]} 81. Qd8+ {[%emt 0:01:08]} Ka7 {[%emt 0:00:45]} 82. Qa5+ {[%emt 0:00:08]} Ba6 {[%emt 0:00:22]} 83. Qc5+ {[%emt 0:00:07]} Rb6 {[%emt 0:00:10]} 84. Qe7+ {[%emt 0:00:21]} Bb7 {[%emt 0:00:14]} 85. Qa3+ {[%emt 0:00:20]} Ba6 {[%emt 0:01:29]} 86. Qe7+ {[%emt 0:00:08]} Bb7 {[%emt 0:00:26]} 87. Qa3+ {[%emt 0:00:04]} Ba6 {[%emt 0:00:26]} 88. Qe7+ {[%emt 0:00:17]} Bb7 {[%emt 0:00:20]} 89. Qa3+ {[%emt 0:00:14] White happily takes the draw.  Weighted Error Value: White=0.41/Black=0.12 (very precise)} 1/2-1/2

[Event "USA Championship Women 2022"]
[Site "Saint Louis"]
[Date "2022.10.15"]
[Round "10.1"]
[White "Krush, Irina"]
[Black "Wu, Rochelle"]
[Result "1/2-1/2"]
[ECO "D45"]
[WhiteElo "2432"]
[BlackElo "2317"]
[Annotator "TA"]
[PlyCount "61"]
[EventDate "2022.09.05"]
[EventType "tourn"]
[EventCountry "USA"]
[SourceTitle "playchess.com"]
[Source "ChessBase"]
[SourceQuality "1"]
[TimeControl "40/5400+30:1800+30"]

{[%evp 12,61,8,18,38,29,36,36,35,36,45,36,40,29,33,13,31,34,38,59,55,51,54,0,0,-25,-31,-20,-24,-18,-18,-66,-58,-82,-81,-89,-11,-13,0,-17,-25,-57,-19,-29,-28,-28,0,-29,0,-37,0,-39]} 1. c4 {[%emt 0:02:21]} c6 {[%emt 0:00:40]} 2. Nf3 {[%emt 0:00:25]} Nf6 {[%emt 0:00:21]} 3. Nc3 {[%emt 0:00:27]} d5 {[%emt 0:00:17]} 4. e3 {[%emt 0:00:13]} e6 {[%emt 0:03:24]} 5. d4 {[%emt 0:01:10]} a6 {[%emt 0:00:31]} 6. c5 {[%emt 0:00:38]} Nbd7 {[%emt 0:00:32]} 7. b4 {[%emt 0:00:29]} g6 {[%emt 0:00:18] D45: Semi-Slav: 5 e3.} 8. Bb2 {[%emt 0:00:12]} Bg7 {[%emt 0:00:15]} 9. Be2 {[%emt 0:00:19]} O-O {[%emt 0:00:13] White is slightly better.} 10. O-O {[%emt 0:00:07]} Re8 {[%emt 0:01:31]} 11. Na4 {[%emt 0:02:17]} Qc7 {[%emt 0:09:21]} 12. Ne5 {[%emt 0:02:24]} Nxe5 {[%emt 0:03:17]} 13. dxe5 {[%emt 0:04:35]} (13. Nb6 {looks sharper.} Neg4 14. Bxg4 Rb8 15. f4) 13... Nd7 {[%emt 0:00:24]} 14. f4 {[%emt 0:00:15]} Rb8 {[%emt 0:06:25] [#]} 15. Rc1 $146 {[%emt 0:12:25]} ({Predecessor:} 15. g4 f6 16. exf6 Bxf6 17. Bxf6 Nxf6 18. g5 Ne4 19. Bd3 e5 20. Bxe4 dxe4 21. Qd6 Qxd6 22. cxd6 {½-½ (69) Fridman,D (2650)-Delorme,A (2429) Rijeka 2010}) 15... f6 {[%emt 0:08:53]} 16. exf6 {[%emt 0:01:47]} Bxf6 {[%emt 0:00:06]} 17. Bxf6 {[%emt 0:00:37]} (17. Qd2 $14) 17... Nxf6 $11 {[%emt 0:00:07]} 18. Qd4 {[%emt 0:12:42]} e5 {[%emt 0:02:46]} 19. fxe5 {[%emt 0:08:04]} Ne4 {[%emt 0:03:56]} 20. e6 {[%emt 0:21:39]} Bxe6 {[%emt 0:01:09]} 21. Nc3 {[%emt 0:00:02]} (21. Bd3 $11 {is superior.}) 21... Bf5 $15 {[%emt 0:11:52]} 22. Bf3 {[%emt 0:00:02]} Nxc3 {[%emt 0:03:40]} 23. Rxc3 {[%emt 0:00:03]} Qe5 {[%emt 0:03:28]} (23... Re5 $17) 24. a4 $11 {[%emt 0:03:58]} Be4 {[%emt 0:04:00]} (24... Ra8 {feels hotter.} 25. b5 h5 26. h3 axb5 27. axb5 Ra2) 25. Qxe5 {[%emt 0:11:05]} Rxe5 {[%emt 0:00:24]} 26. Kf2 {[%emt 0:03:33]} Rbe8 {[%emt 0:04:56]} 27. h4 {[%emt 0:04:12]} Rf8 {[%emt 0:12:46]} 28. Kg3 {[%emt 0:00:54]} Rfe8 {[%emt 0:04:50]} 29. Kf2 {[%emt 0:00:09]} Rf8 {[%emt 0:01:18]} 30. Kg3 {[%emt 0:00:07]} Rfe8 {[%emt 0:00:06]} 31. Kf2 {[%emt 0:01:17] Weighted Error Value: White=0.13 (very precise) /Black=0.14 (very precise)} 1/2-1/2

[Event "USA Championship Women 2022"]
[Site "Saint Louis"]
[Date "2022.10.15"]
[Round "10.2"]
[White "Abrahamyan, Tatev"]
[Black "Morris-Suzuki, Sophie"]
[Result "1/2-1/2"]
[ECO "C00"]
[WhiteElo "2308"]
[BlackElo "2126"]
[Annotator "TA"]
[PlyCount "174"]
[EventDate "2022.09.05"]
[EventType "tourn"]
[EventCountry "USA"]
[SourceTitle "playchess.com"]
[Source "ChessBase"]
[SourceQuality "1"]
[TimeControl "40/5400+30:1800+30"]

{[%evp 18,174,0,0,18,9,0,-20,-33,-24,-13,-17,-20,-22,-8,-26,-38,-40,0,0,0,-45,-34,-72,15,10,14,9,6,17,32,32,36,39,34,27,52,56,51,47,114,116,195,87,92,23,49,23,23,8,17,0,8,0,63,7,78,10,42,42,42,7,152,7,7,7,7,7,31,0,31,0,7,7,7,7,7,7,7,7,7,7,7,7,7,7,7,7,7,7,7,7,7,7,7,7,7,0,0,0,0,0,0,0,0,0,7,7,7,7,7,0,0,0,0,0,7,7,7,0,7,0,7,0,7,7,7,7,7,7,7,7,7,7,7,7,7,7,7,7,7,7,7,0,7,0,8,0,0,0,0,0,0,0,0,0,0,0,0]} 1. Nf3 {[%emt 0:00:17]} c5 {[%emt 0:00:22]} 2. g3 {[%emt 0:00:00]} b6 {[%emt 0:00:26]} 3. Bg2 {[%emt 0:00:09]} Bb7 {[%emt 0:00:15]} 4. O-O {[%emt 0:00:20]} Nf6 {[%emt 0:01:07]} 5. d3 {[%emt 0:00:59]} d5 {[%emt 0:05:10]} 6. Nbd2 {[%emt 0:00:06]} e6 {[%emt 0:01:48]} 7. e4 {[%emt 0:02:44]} Nc6 {[%emt 0:00:57]} 8. Re1 {[%emt 0:00:05]} Be7 {[%emt 0:00:50]} 9. c3 {[%emt 0:01:08]} Qc7 {[%emt 0:03:55]} 10. a3 {[%emt 0:01:49]} b5 {[%emt 0:10:02] C00: French: Unusual White 2nd moves.} 11. Qe2 {[%emt 0:17:58]} O-O {[%emt 0:04:01]} 12. e5 {[%emt 0:01:25]} Nd7 {[%emt 0:00:12]} 13. Nf1 {[%emt 0:00:11]} d4 {[%emt 0:07:42]} 14. cxd4 {[%emt 0:07:52] [#]} Nxd4 $146 {[%emt 0:01:09]} ({Predecessor:} 14... cxd4 15. Bf4 b4 16. axb4 Nxb4 17. Rec1 Nc5 18. Bd2 a5 19. Bxb4 axb4 20. Rxa8 Rxa8 21. Nxd4 Bxg2 22. Kxg2 {1-0 (40) Sale,S (2428)-Jovanic,O (2512) Biograd 2018}) 15. Nxd4 {[%emt 0:01:39]} cxd4 {[%emt 0:01:43]} 16. Bxb7 {[%emt 0:09:03]} (16. Nd2 {is interesting.} Bxg2 17. Kxg2 Rfd8 18. Nb3) 16... Qxb7 {[%emt 0:00:05]} 17. Nd2 {[%emt 0:00:25][%cal Bf1d2,Bd2f3,Bf3d4,Bd4f5][%mdl 32]} Rac8 {[%emt 0:05:34]} 18. Nf3 {[%emt 0:05:47]} a5 {[%emt 0:22:31]} 19. Bf4 {[%emt 0:12:04]} Qd5 {[%emt 0:02:18]} 20. Qe4 {[%emt 0:06:07] [#]} Nc5 {[%emt 0:09:33]} (20... Qxe4 $1 $17 21. dxe4 (21. Rxe4 Nc5 $17) 21... g5 22. Bxg5 (22. Bd2 g4 $15) 22... Bxg5 23. Nxg5 Nxe5) 21. Qxd5 $11 {[%emt 0:02:13]} exd5 {[%emt 0:00:02]} 22. Nxd4 {[%emt 0:08:18] With the idea Nf5.} Nxd3 {[%emt 0:00:12]} 23. Re2 {[%emt 0:00:16][%cal Be1e2,Be2d2,Bd2d5][%mdl 32]} b4 {[%emt 0:11:25]} 24. Nf5 {[%emt 0:03:24]} Rfe8 {[%emt 0:07:58]} 25. Rd2 {[%emt 0:03:43]} Nxf4 {[%emt 0:00:39]} 26. gxf4 {[%emt 0:00:43]} Bf8 {[%emt 0:05:48]} 27. Nd6 {[%emt 0:05:50]} Bxd6 {[%emt 0:00:00]} 28. exd6 $14 {[%emt 0:01:22][%mdl 4096] Endgame Hoping for d7. KRR-KRR} Rc4 {[%emt 0:00:00]} (28... Red8 $14) 29. Rxd5 {[%emt 0:00:39]} g6 {[%emt 0:02:34] [#]} (29... Rd8 $16) 30. Rxa5 {[%emt 0:01:16]} (30. a4 $1 $18 {and the rest is easy.}) 30... bxa3 $16 {[%emt 0:01:40]} 31. R1xa3 {[%emt 0:00:28]} (31. bxa3 $16 Rd4 32. a4) 31... Re1+ $11 {[%emt 0:00:00]} 32. Kg2 {[%emt 0:00:24]} Rd1 {[%emt 0:02:26]} 33. f5 {[%emt 0:03:42]} Rxd6 {[%emt 0:00:48]} 34. Rf3 {[%emt 0:01:06]} Kg7 35. Rb5 {[%emt 0:01:32]} Rc1 ({Black should try} 35... g5 $11) 36. b4 {[%emt 0:02:31]} (36. fxg6 $14 hxg6 37. b4) 36... Rb1 {[%emt 0:00:00]} (36... g5 $11) 37. h4 {[%emt 0:00:29]} (37. fxg6 $16 hxg6 38. Rb7) 37... gxf5 38. Rfxf5 {[%emt 0:00:53]} Rd4 $1 {[%emt 0:00:00][%csl LRb4,LRh4]} 39. Rb7 {[%emt 0:00:00]} Rbxb4 {[%emt 0:00:00]} (39... Rxh4 $11 40. b5 (40. Rfxf7+ Kg6 $11) (40. Rbxf7+ Kg8 $11) 40... Kg6 41. Rbxf7 (41. Rfxf7 Rxb5 42. Rg7+ Kf6 $11) 41... Rxb5 42. R5f6+ (42. Rxb5 Kxf7 43. Rb7+ Kg6 $11) 42... Kh5) 40. Rbxf7+ {[%emt 0:00:28]} (40. Rfxf7+ $16 Kg6 41. Rg7+ (41. Rxh7 Rg4+ 42. Kh3 Rxh4+ 43. Rxh4 Rxb7 $11) 41... Kf5 42. Rxb4 (42. Rxh7 Rg4+ 43. Kf3 Rgf4+ 44. Ke2 Rfe4+ 45. Kf3 Rf4+ 46. Ke2 Rfe4+ 47. Kd2 Red4+ 48. Ke3 Re4+ 49. Kd3 Red4+ 50. Kc3 Rdc4+ 51. Kd3 Rd4+ 52. Ke3 Re4+ 53. Kd2 Red4+ 54. Ke3 $11) 42... Rxb4 43. Rxh7) 40... Kg8 {[%emt 0:03:49]} 41. h5 {[%emt 0:11:56][%cal Bh4h5,Bh5h6][%mdl 32]} Rg4+ {[%emt 0:04:23]} 42. Kf3 {[%emt 0:01:56] Threatens to win with h6.} Rg5 {[%emt 0:03:48]} 43. Rxg5+ {[%emt 0:00:00]} Kxf7 $14 {[%emt 0:00:00] KR-KR} 44. h6 {[%emt 0:00:00]} Rb6 {[%emt 0:00:00] The position is equal.} 45. Rg7+ {[%emt 0:01:26]} Kf8 {[%emt 0:00:11]} 46. Rxh7 {[%emt 0:00:00]} Kg8 {[%emt 0:00:26]} 47. Rg7+ {[%emt 0:00:00]} Kf8 48. Ra7 {[%emt 0:00:38]} Rxh6 {[%emt 0:00:27]} 49. Kg4 {[%emt 0:01:42]} Rf6 {[%emt 0:02:01]} 50. f4 {[%emt 0:05:42]} Kg8 {[%emt 0:05:43]} 51. Kg5 {[%emt 0:00:23]} Rf8 {[%emt 0:07:55]} 52. Re7 {[%emt 0:06:19]} Ra8 {[%emt 0:00:37]} 53. f5 {[%emt 0:01:01]} Ra6 {[%emt 0:00:29]} 54. Re6 {[%emt 0:00:45]} Ra7 {[%emt 0:01:27]} 55. Rg6+ $1 {[%emt 0:02:24]} Kf7 {[%emt 0:00:04]} 56. Rh6 {[%emt 0:00:00]} Kg8 {Against Rh7} 57. Kg6 {[%emt 0:02:02]} Rg7+ {[%emt 0:01:40]} 58. Kf6 {[%emt 0:00:22]} Rf7+ {[%emt 0:00:27]} 59. Ke6 {[%emt 0:00:14][%cal Oh6h8]} Ra7 {[%emt 0:01:08] ( -> ...Ra6+)} 60. Rg6+ {[%emt 0:00:31]} Kf8 {[%emt 0:00:23]} 61. Kf6 {[%emt 0:00:00]} Ra6+ 62. Kg5 {[%emt 0:00:00]} Ra5 {[%emt 0:01:26]} 63. Rb6 {[%emt 0:00:55]} Ra7 {[%emt 0:02:42]} 64. Kg6 {[%emt 0:00:00] White threatens f6 and mate.} Rg7+ {[%emt 0:00:15]} 65. Kf6 {[%emt 0:00:00][%cal Rb6b8]} Rf7+ {[%emt 0:00:00]} 66. Ke5 {[%emt 0:00:00]} Re7+ {[%emt 0:00:18]} 67. Kf4 {[%emt 0:00:00]} Ra7 68. Kg5 {[%emt 0:01:00]} Kg7 {[%emt 0:00:50]} 69. Rg6+ {[%emt 0:00:39]} Kf7 {[%emt 0:00:26]} 70. Rh6 {[%emt 0:00:44] Threatening mate with Rh7+.} Kf8 {[%emt 0:01:05]} 71. Rh8+ {[%emt 0:00:18]} Kg7 {[%emt 0:01:39]} 72. Rb8 {[%emt 0:00:00]} Ra6 73. Rb7+ {[%emt 0:00:47]} Kf8 {[%emt 0:00:42]} 74. Rc7 {[%emt 0:00:27]} Rb6 {[%emt 0:00:13]} 75. Rh7 {[%emt 0:00:00]} Ra6 76. Rh1 {[%emt 0:01:02]} Kf7 {[%emt 0:00:00]} 77. Rc1 {[%emt 0:00:21]} Kf8 {[%emt 0:01:17]} 78. Rb1 {[%emt 0:00:13]} Kf7 {[%emt 0:00:00]} 79. Rb5 {[%emt 0:00:46]} Kf8 {[%emt 0:00:50]} 80. Rb8+ {[%emt 0:00:00]} Kf7 {[%emt 0:00:17]} 81. Rb7+ {[%emt 0:00:00]} Kf8 {[%emt 0:00:08]} 82. f6 {[%emt 0:00:12] Kg6 would kill now.} Ra1 {[%emt 0:00:07]} 83. Rb8+ $1 {[%emt 0:00:00]} Kf7 {[%emt 0:00:00]} 84. Rb7+ {[%emt 0:00:08]} Kf8 {[%emt 0:00:00]} 85. Rb8+ {[%emt 0:00:03]} Kf7 {[%emt 0:00:00]} 86. Rb7+ {[%emt 0:00:15]} Kf8 {[%emt 0:00:00]} 87. Rb8+ {[%emt 0:00:18]} Kf7 {[%emt 0:00:04] Weighted Error Value: White=0.20 (precise) /Black=0.20 (precise)} 1/2-1/2